Workbook

Sheet Achtung

Sheet Inhalt
A1: Excel_Pivot_Intro.xlsm

Sheet Ausgaben Daten
A3: Datum | B3: Typen | C3: Beschreibung | D3: Bezahlung | E3: Preise
A4: 2018-01-17 | B4: Haushalt | C4: Geschirr | D4: Bar | E4: 410
A5: 2018-02-04 | B5: Auto | C5: Benzin | D5: EC | E5: 20
A6: 2018-02-23 | B6: Gebühren | C6: GEZ | D6: Dauerauftrag | E6: 40
A7: 2018-02-28 | B7: Geschenke | C7: Petra, Geb. | D7: Bar | E7: 120
A8: 2018-04-11 | B8: Auto | C8: Waschen | D8: Bar | E8: 12
A9: 2018-04-13 | B9: Kleidung | C9: Schuhe | D9: EC | E9: 42
A10: 2018-05-23 | B10: Kleidung | C10: T-Shirts | D10: EC | E10: 33
A11: 2018-06-10 | B11: Geschenke | C11: Marion, Geb | D11: Bar | E11: 55
A12: 2018-06-17 | B12: Freizeit | C12: Pizza | D12: Bar | E12: 26
A13: 2018-06-19 | B13: Gebühren | C13: GEZ | D13: Dauerauftrag | E13: 40
A14: 2018-07-01 | B14: Urlaub | C14: Mallorca | D14: Kredit | E14: 680
A15: 2018-07-14 | B15: Auto | C15: Benzin | D15: EC | E15: 20
A16: 2018-07-17 | B16: Haushalt | C16: Putzmittel | D16: Bar | E16: 15
A17: 2018-08-04 | B17: Haushalt | C17: Staubsauger | D17: EC | E17: 99
A18: 2018-10-09 | B18: Auto | C18: Benzin | D18: EC | E18: 48
A19: 2018-10-16 | B19: Haushalt | C19: Couch | D19: Kredit | E19: 4200
A20: 2018-10-16 | B20: Gebühren | C20: GEZ | D20: Dauerauftrag | E20: 40
A21: 2018-10-17 | B21: Haushalt | C21: Lampen | D21: Kredit | E21: 290
A22: 2018-11-26 | B22: Auto | C22: Benzin | D22: EC | E22: 37
A23: 2018-12-07 | B23: Haushalt | C23: Handtücher | D23: Bar | E23: 120
A24: 2018-12-08 | B24: Haushalt | C24: Bettzeug | D24: EC | E24: 210
A25: 2018-12-09 | B25: Geschenke | C25: Hochzeit Hans | D25: EC | E25: 280
A26: 2018-12-23 | B26: Haushalt | C26: Duschgel | D26: Bar | E26: 45
A27: 2019-01-02 | B27: Haushalt | C27: Parfum | D27: EC | E27: 89
A28: 2019-01-10 | B28: Auto | C28: TÜV | D28: Bar | E28: 64
A29: 2019-01-15 | B29: Urlaub | C29: Ibiza | D29: EC | E29: 220
A30: 2019-01-22 | B30: Auto | C30: Benzin | D30: Bar | E30: 55
A31: 2019-01-24 | B31: Urlaub | C31: El Gouna | D31: Kredit | E31: 740
A32: 2019-01-25 | B32: Gebühren | C32: GEZ | D32: Dauerauftrag | E32: 40
A33: 2019-03-08 | B33: Freizeit | C33: Kino | D33: Bar | E33: 22
A34: 2019-03-12 | B34: Geschenke | C34: Dieter, Rente | D34: Bar | E34: 60
A35: 2019-03-18 | B35: Freizeit | C35: Inder | D35: Bar | E35: 55
A36: 2019-03-29 | B36: Auto | C36: Reparatur | D36: EC | E36: 512
A37: 2019-04-07 | B37: Urlaub | C37: Holland | D37: Bar | E37: 140
A38: 2019-04-21 | B38: Freizeit | C38: Fisch essen | D38: Bar | E38: 51
A39: 2019-04-21 | B39: Urlaub | C39: Teneriffa | D39: Kredit | E39: 941
A40: 2019-04-21 | B40: Urlaub | C40: Teneriffa | D40: Bar | E40: 250
A41: 2019-05-03 | B41: Freizeit | C41: Japaner | D41: EC | E41: 98
A42: 2019-05-12 | B42: Freizeit | C42: Mexikaner | D42: EC | E42: 47
A43: 2019-05-13 | B43: Haushalt | C43: Parkett | D43: EC | E43: 850
A44: 2019-05-17 | B44: Auto | C44: Ölwechsel | D44: EC | E44: 74
A45: 2019-06-14 | B45: Haushalt | C45: Fernseher | D45: Kredit | E45: 999
A46: 2019-06-26 | B46: Gebühren | C46: GEZ | D46: Dauerauftrag | E46: 40
A47: 2019-07-23 | B47: Auto | C47: Waschen | D47: Bar | E47: 20
A48: 2019-07-30 | B48: Haushalt | C48: Waschmaschine | D48: EC | E48: 340
A49: 2019-07-31 | B49: Auto | C49: Benzin | D49: EC | E49: 62
A50: 2019-08-22 | B50: Freizeit | C50: Thai-Imbiss | D50: Bar | E50: 19
A51: 2019-08-27 | B51: Auto | C51: Waschen | D51: Bar | E51: 10
A52: 2019-08-29 | B52: Haushalt | C52: Schrank | D52: EC | E52: 600
A53: 2019-09-06 | B53: Haushalt | C53: Stühle | D53: EC | E53: 220
A54: 2019-09-09 | B54: Kleidung | C54: Hut | D54: Bar | E54: 45
A55: 2019-09-11 | B55: Geschenke | C55: Gabi, Geb | D55: Bar | E55: 47
A56: 2019-09-14 | B56: Kleidung | C56: Shorts | D56: Bar | E56: 22
A57: 2019-09-19 | B57: Freizeit | C57: Pizza | D57: Bar | E57: 35
A58: 2019-10-10 | B58: Kleidung | C58: Hawaii-Hemdem | D58: EC | E58: 89
A59: 2019-10-15 | B59: Gebühren | C59: GEZ | D59: Dauerauftrag | E59: 40
A60: 2019-10-17 | B60: Kleidung | C60: Hemd | D60: Bar | E60: 25
A61: 2019-10-30 | B61: Kleidung | C61: Hose | D61: Bar | E61: 99
A62: 2019-11-02 | B62: Haushalt | C62: Geschirr | D62: Bar | E62: 120
A63: 2019-11-21 | B63: Urlaub | C63: Hawaii | D63: Kredit | E63: 2780

Sheet Ausgaben nach Tabelle

Sheet Ausgaben Tabelle
A2: Datum | B2: Typen | C2: Beschreibung | D2: Bezahlung | E2: Preise
A3: 2018-02-04 | B3: Auto | C3: Benzin | D3: EC | E3: 20
A4: 2018-04-11 | B4: Auto | C4: Waschen | D4: Bar | E4: 12
A5: 2018-07-14 | B5: Auto | C5: Benzin | D5: EC | E5: 20
A6: 2018-10-09 | B6: Auto | C6: Benzin | D6: EC | E6: 48
A7: 2018-11-26 | B7: Auto | C7: Benzin | D7: EC | E7: 37
A8: 2019-01-10 | B8: Auto | C8: TÜV | D8: Bar | E8: 64
A9: 2019-01-22 | B9: Auto | C9: Benzin | D9: Bar | E9: 55
A10: 2019-03-29 | B10: Auto | C10: Reparatur | D10: EC | E10: 512
A11: 2019-05-17 | B11: Auto | C11: Ölwechsel | D11: EC | E11: 74
A12: 2019-07-23 | B12: Auto | C12: Waschen | D12: Bar | E12: 20
A13: 2019-07-31 | B13: Auto | C13: Benzin | D13: EC | E13: 62
A14: 2019-08-27 | B14: Auto | C14: Waschen | D14: Bar | E14: 10
A15: 2018-06-17 | B15: Freizeit | C15: Pizza | D15: Bar | E15: 26
A16: 2019-03-08 | B16: Freizeit | C16: Kino | D16: Bar | E16: 22
A17: 2019-03-18 | B17: Freizeit | C17: Inder | D17: Bar | E17: 55
A18: 2019-04-21 | B18: Freizeit | C18: Fisch essen | D18: Bar | E18: 51
A19: 2019-05-03 | B19: Freizeit | C19: Japaner | D19: EC | E19: 98
A20: 2019-05-12 | B20: Freizeit | C20: Mexikaner | D20: EC | E20: 47
A21: 2019-08-22 | B21: Freizeit | C21: Thai-Imbiss | D21: Bar | E21: 19
A22: 2019-09-19 | B22: Freizeit | C22: Pizza | D22: Bar | E22: 35
A23: 2018-02-23 | B23: Gebühren | C23: GEZ | D23: Dauerauftrag | E23: 40
A24: 2018-06-19 | B24: Gebühren | C24: GEZ | D24: Dauerauftrag | E24: 40
A25: 2018-10-16 | B25: Gebühren | C25: GEZ | D25: Dauerauftrag | E25: 40
A26: 2019-01-25 | B26: Gebühren | C26: GEZ | D26: Dauerauftrag | E26: 40
A27: 2019-06-26 | B27: Gebühren | C27: GEZ | D27: Dauerauftrag | E27: 40
A28: 2019-10-15 | B28: Gebühren | C28: GEZ | D28: Dauerauftrag | E28: 40
A29: 2018-02-28 | B29: Geschenke | C29: Petra, Geb. | D29: Bar | E29: 120
A30: 2018-06-10 | B30: Geschenke | C30: Marion, Geb | D30: Bar | E30: 55
A31: 2018-12-09 | B31: Geschenke | C31: Hochzeit Hans | D31: EC | E31: 280
A32: 2019-03-12 | B32: Geschenke | C32: Dieter, Rente | D32: Bar | E32: 60
A33: 2019-09-11 | B33: Geschenke | C33: Gabi, Geb | D33: Bar | E33: 47
A34: 2018-01-17 | B34: Haushalt | C34: Geschirr | D34: Bar | E34: 410
A35: 2018-07-17 | B35: Haushalt | C35: Putzmittel | D35: Bar | E35: 15
A36: 2018-08-04 | B36: Haushalt | C36: Staubsauger | D36: EC | E36: 99
A37: 2018-10-16 | B37: Haushalt | C37: Couch | D37: Kredit | E37: 4200
A38: 2018-10-17 | B38: Haushalt | C38: Lampen | D38: Kredit | E38: 290
A39: 2018-12-07 | B39: Haushalt | C39: Handtücher | D39: Bar | E39: 120
A40: 2018-12-08 | B40: Haushalt | C40: Bettzeug | D40: EC | E40: 210
A41: 2018-12-23 | B41: Haushalt | C41: Duschgel | D41: Bar | E41: 45
A42: 2019-01-02 | B42: Haushalt | C42: Parfum | D42: EC | E42: 89
A43: 2019-05-13 | B43: Haushalt | C43: Parkett | D43: EC | E43: 850
A44: 2019-06-14 | B44: Haushalt | C44: Fernseher | D44: Kredit | E44: 999
A45: 2019-07-30 | B45: Haushalt | C45: Waschmaschine | D45: EC | E45: 340
A46: 2019-08-29 | B46: Haushalt | C46: Schrank | D46: EC | E46: 600
A47: 2019-09-06 | B47: Haushalt | C47: Stühle | D47: EC | E47: 220
A48: 2019-11-02 | B48: Haushalt | C48: Geschirr | D48: Bar | E48: 120
A49: 2018-04-13 | B49: Kleidung | C49: Schuhe | D49: EC | E49: 42
A50: 2018-05-23 | B50: Kleidung | C50: T-Shirts | D50: EC | E50: 33
A51: 2019-09-09 | B51: Kleidung | C51: Hut | D51: Bar | E51: 45
A52: 2019-09-14 | B52: Kleidung | C52: Shorts | D52: Bar | E52: 22
A53: 2019-10-10 | B53: Kleidung | C53: Hawaii-Hemdem | D53: EC | E53: 89
A54: 2019-10-17 | B54: Kleidung | C54: Hemd | D54: Bar | E54: 25
A55: 2019-10-30 | B55: Kleidung | C55: Hose | D55: Bar | E55: 99
A56: 2018-07-01 | B56: Urlaub | C56: Mallorca | D56: Kredit | E56: 680
A57: 2019-01-15 | B57: Urlaub | C57: Ibiza | D57: EC | E57: 220
A58: 2019-01-24 | B58: Urlaub | C58: El Gouna | D58: Kredit | E58: 740
A59: 2019-04-07 | B59: Urlaub | C59: Holland | D59: Bar | E59: 140
A60: 2019-04-21 | B60: Urlaub | C60: Teneriffa | D60: Kredit | E60: 941
A61: 2019-04-21 | B61: Urlaub | C61: Teneriffa | D61: Bar | E61: 250
A62: 2019-11-21 | B62: Urlaub | C62: Hawaii | D62: Kredit | E62: 2780

Sheet Ausgaben Daten Demo
A3: Datum | B3: Typen | C3: Beschreibung | D3: Bezahlung | E3: Preise | F3: MwSt
A4: 2018-01-17 | B4: Haushalt | C4: Geschirr | D4: Bar | E4: 410 | F4: =Ausgaben1[[#This Row],[Preise]]*1.19 -> 487.9
A5: 2018-02-04 | B5: Auto | C5: Benzin | D5: EC | E5: 20 | F5: =Ausgaben1[[#This Row],[Preise]]*1.19 -> 23.8
A6: 2018-02-23 | B6: Gebühren | C6: GEZ | D6: Dauerauftrag | E6: 40 | F6: =Ausgaben1[[#This Row],[Preise]]*1.19 -> 47.6
A7: 2018-02-28 | B7: Geschenke | C7: Petra, Geb. | D7: Bar | E7: 120 | F7: =Ausgaben1[[#This Row],[Preise]]*1.19 -> 142.8
A8: 2018-04-11 | B8: Auto | C8: Waschen | D8: Bar | E8: 12 | F8: =Ausgaben1[[#This Row],[Preise]]*1.19 -> 14.28
A9: 2018-04-13 | B9: Kleidung | C9: Schuhe | D9: EC | E9: 42 | F9: =Ausgaben1[[#This Row],[Preise]]*1.19 -> 49.98
A10: 2018-05-23 | B10: Kleidung | C10: T-Shirts | D10: EC | E10: 33 | F10: =Ausgaben1[[#This Row],[Preise]]*1.19 -> 39.27
A11: 2018-06-10 | B11: Geschenke | C11: Marion, Geb | D11: Bar | E11: 55 | F11: =Ausgaben1[[#This Row],[Preise]]*1.19 -> 65.45
A12: 2018-06-17 | B12: Freizeit | C12: Pizza | D12: Bar | E12: 26 | F12: =Ausgaben1[[#This Row],[Preise]]*1.19 -> 30.94
A13: 2018-06-19 | B13: Gebühren | C13: GEZ | D13: Dauerauftrag | E13: 40 | F13: =Ausgaben1[[#This Row],[Preise]]*1.19 -> 47.6
A14: 2018-07-01 | B14: Urlaub | C14: Mallorca | D14: Kredit | E14: 680 | F14: =Ausgaben1[[#This Row],[Preise]]*1.19 -> 809.2
A15: 2018-07-14 | B15: Auto | C15: Benzin | D15: EC | E15: 20 | F15: =Ausgaben1[[#This Row],[Preise]]*1.19 -> 23.8
A16: 2018-07-17 | B16: Haushalt | C16: Putzmittel | D16: Bar | E16: 15 | F16: =Ausgaben1[[#This Row],[Preise]]*1.19 -> 17.85
A17: 2018-08-04 | B17: Haushalt | C17: Staubsauger | D17: EC | E17: 99 | F17: =Ausgaben1[[#This Row],[Preise]]*1.19 -> 117.81
A18: 2018-10-09 | B18: Auto | C18: Benzin | D18: EC | E18: 48 | F18: =Ausgaben1[[#This Row],[Preise]]*1.19 -> 57.12
A19: 2018-10-16 | B19: Haushalt | C19: Couch | D19: Kredit | E19: 4200 | F19: =Ausgaben1[[#This Row],[Preise]]*1.19 -> 4998
A20: 2018-10-16 | B20: Gebühren | C20: GEZ | D20: Dauerauftrag | E20: 40 | F20: =Ausgaben1[[#This Row],[Preise]]*1.19 -> 47.6
A21: 2018-10-17 | B21: Haushalt | C21: Lampen | D21: Kredit | E21: 290 | F21: =Ausgaben1[[#This Row],[Preise]]*1.19 -> 345.1
A22: 2018-11-26 | B22: Auto | C22: Benzin | D22: EC | E22: 37 | F22: =Ausgaben1[[#This Row],[Preise]]*1.19 -> 44.03
A23: 2018-12-07 | B23: Haushalt | C23: Handtücher | D23: Bar | E23: 120 | F23: =Ausgaben1[[#This Row],[Preise]]*1.19 -> 142.8
A24: 2018-12-08 | B24: Haushalt | C24: Bettzeug | D24: EC | E24: 210 | F24: =Ausgaben1[[#This Row],[Preise]]*1.19 -> 249.9
A25: 2018-12-09 | B25: Geschenke | C25: Hochzeit Hans | D25: EC | E25: 280 | F25: =Ausgaben1[[#This Row],[Preise]]*1.19 -> 333.2
A26: 2018-12-23 | B26: Haushalt | C26: Duschgel | D26: Bar | E26: 45 | F26: =Ausgaben1[[#This Row],[Preise]]*1.19 -> 53.55
A27: 2019-01-02 | B27: Haushalt | C27: Parfum | D27: EC | E27: 89 | F27: =Ausgaben1[[#This Row],[Preise]]*1.19 -> 105.91
A28: 2019-01-10 | B28: Auto | C28: TÜV | D28: Bar | E28: 64 | F28: =Ausgaben1[[#This Row],[Preise]]*1.19 -> 76.16
A29: 2019-01-15 | B29: Urlaub | C29: Ibiza | D29: EC | E29: 220 | F29: =Ausgaben1[[#This Row],[Preise]]*1.19 -> 261.8
A30: 2019-01-22 | B30: Auto | C30: Benzin | D30: Bar | E30: 55 | F30: =Ausgaben1[[#This Row],[Preise]]*1.19 -> 65.45
A31: 2019-01-24 | B31: Urlaub | C31: El Gouna | D31: Kredit | E31: 740 | F31: =Ausgaben1[[#This Row],[Preise]]*1.19 -> 880.6
A32: 2019-01-25 | B32: Gebühren | C32: GEZ | D32: Dauerauftrag | E32: 40 | F32: =Ausgaben1[[#This Row],[Preise]]*1.19 -> 47.6
A33: 2019-03-08 | B33: Freizeit | C33: Kino | D33: Bar | E33: 22 | F33: =Ausgaben1[[#This Row],[Preise]]*1.19 -> 26.18
A34: 2019-03-12 | B34: Geschenke | C34: Dieter, Rente | D34: Bar | E34: 60 | F34: =Ausgaben1[[#This Row],[Preise]]*1.19 -> 71.4
A35: 2019-03-18 | B35: Freizeit | C35: Inder | D35: Bar | E35: 55 | F35: =Ausgaben1[[#This Row],[Preise]]*1.19 -> 65.45
A36: 2019-03-29 | B36: Auto | C36: Reparatur | D36: EC | E36: 512 | F36: =Ausgaben1[[#This Row],[Preise]]*1.19 -> 609.28
A37: 2019-04-07 | B37: Urlaub | C37: Holland | D37: Bar | E37: 140 | F37: =Ausgaben1[[#This Row],[Preise]]*1.19 -> 166.6
A38: 2019-04-21 | B38: Freizeit | C38: Fisch essen | D38: Bar | E38: 51 | F38: =Ausgaben1[[#This Row],[Preise]]*1.19 -> 60.69
A39: 2019-04-21 | B39: Urlaub | C39: Teneriffa | D39: Kredit | E39: 941 | F39: =Ausgaben1[[#This Row],[Preise]]*1.19 -> 1119.79
A40: 2019-04-21 | B40: Urlaub | C40: Teneriffa | D40: Bar | E40: 250 | F40: =Ausgaben1[[#This Row],[Preise]]*1.19 -> 297.5
A41: 2019-05-03 | B41: Freizeit | C41: Japaner | D41: EC | E41: 98 | F41: =Ausgaben1[[#This Row],[Preise]]*1.19 -> 116.62
A42: 2019-05-12 | B42: Freizeit | C42: Mexikaner | D42: EC | E42: 47 | F42: =Ausgaben1[[#This Row],[Preise]]*1.19 -> 55.93
A43: 2019-05-13 | B43: Haushalt | C43: Parkett | D43: EC | E43: 850 | F43: =Ausgaben1[[#This Row],[Preise]]*1.19 -> 1011.5
A44: 2019-05-17 | B44: Auto | C44: Ölwechsel | D44: EC | E44: 74 | F44: =Ausgaben1[[#This Row],[Preise]]*1.19 -> 88.06
A45: 2019-06-14 | B45: Haushalt | C45: Fernseher | D45: Kredit | E45: 999 | F45: =Ausgaben1[[#This Row],[Preise]]*1.19 -> 1188.81
A46: 2019-06-26 | B46: Gebühren | C46: GEZ | D46: Dauerauftrag | E46: 40 | F46: =Ausgaben1[[#This Row],[Preise]]*1.19 -> 47.6
A47: 2019-07-23 | B47: Auto | C47: Waschen | D47: Bar | E47: 20 | F47: =Ausgaben1[[#This Row],[Preise]]*1.19 -> 23.8
A48: 2019-07-30 | B48: Haushalt | C48: Waschmaschine | D48: EC | E48: 340 | F48: =Ausgaben1[[#This Row],[Preise]]*1.19 -> 404.6
A49: 2019-07-31 | B49: Auto | C49: Benzin | D49: EC | E49: 62 | F49: =Ausgaben1[[#This Row],[Preise]]*1.19 -> 73.78
A50: 2019-08-22 | B50: Freizeit | C50: Thai-Imbiss | D50: Bar | E50: 19 | F50: =Ausgaben1[[#This Row],[Preise]]*1.19 -> 22.61
A51: 2019-08-27 | B51: Auto | C51: Waschen | D51: Bar | E51: 10 | F51: =Ausgaben1[[#This Row],[Preise]]*1.19 -> 11.9
A52: 2019-08-29 | B52: Haushalt | C52: Schrank | D52: EC | E52: 600 | F52: =Ausgaben1[[#This Row],[Preise]]*1.19 -> 714
A53: 2019-09-06 | B53: Haushalt | C53: Stühle | D53: EC | E53: 220 | F53: =Ausgaben1[[#This Row],[Preise]]*1.19 -> 261.8
A54: 2019-09-09 | B54: Kleidung | C54: Hut | D54: Bar | E54: 45 | F54: =Ausgaben1[[#This Row],[Preise]]*1.19 -> 53.55
A55: 2019-09-11 | B55: Geschenke | C55: Gabi, Geb | D55: Bar | E55: 47 | F55: =Ausgaben1[[#This Row],[Preise]]*1.19 -> 55.93
A56: 2019-09-14 | B56: Kleidung | C56: Shorts | D56: Bar | E56: 22 | F56: =Ausgaben1[[#This Row],[Preise]]*1.19 -> 26.18
A57: 2019-09-19 | B57: Freizeit | C57: Pizza | D57: Bar | E57: 35 | F57: =Ausgaben1[[#This Row],[Preise]]*1.19 -> 41.65
A58: 2019-10-10 | B58: Kleidung | C58: Hawaii-Hemdem | D58: EC | E58: 89 | F58: =Ausgaben1[[#This Row],[Preise]]*1.19 -> 105.91
A59: 2019-10-15 | B59: Gebühren | C59: GEZ | D59: Dauerauftrag | E59: 40 | F59: =Ausgaben1[[#This Row],[Preise]]*1.19 -> 47.6
A60: 2019-10-17 | B60: Kleidung | C60: Hemd | D60: Bar | E60: 25 | F60: =Ausgaben1[[#This Row],[Preise]]*1.19 -> 29.75
A61: 2019-10-30 | B61: Kleidung | C61: Hose | D61: Bar | E61: 99 | F61: =Ausgaben1[[#This Row],[Preise]]*1.19 -> 117.81
A62: 2019-11-02 | B62: Haushalt | C62: Geschirr | D62: Bar | E62: 120 | F62: =Ausgaben1[[#This Row],[Preise]]*1.19 -> 142.8
A63: 2019-11-21 | B63: Urlaub | C63: Hawaii | D63: Kredit | E63: 2780 | F63: =Ausgaben1[[#This Row],[Preise]]*1.19 -> 3308.2
A64: 2020-05-12 | B64: Moto | C64: XT | F64: =Ausgaben1[[#This Row],[Preise]]*1.19 -> 0

Sheet Pivot fertig
B3: Preis | C3: Bezahlung
B4: Typen | C4: Bar | D4: EC | E4: Kredit | F4: Gesamtergebnis
B5: Auto | C5: 161 | D5: 773 | F5: 934 | J5: Wieviel habe ich für Auto & Haushalt ausgegeben?
B6: Haushalt | C6: 710 | D6: 2408 | E6: 5489 | F6: 8607
B7: Gesamtergebnis | C7: 871 | D7: 3181 | E7: 5489 | F7: 9541 | J7: Ergebnis | K7: 9541

Sheet Tabelle1
A3: Zeilenbeschriftungen | B3: Summe von Preise
A4: Bar | B4: 1942
A5: Dauerauftrag | B5: 240
A6: EC | B6: 3990
A7: Kredit | B7: 10630
A8: Gesamtergebnis | B8: 16802

Sheet Pivot Demo 1

Sheet Pivot Demo 2
F3: Summe von Preise | G3: Bez
F4: Typ | G4: Bar | H4: Dauerauftrag | I4: EC | J4: Kredit | K4: Gesamtergebnis
F5: Auto | G5: 161 | I5: 773 | K5: 934
F6: Freizeit | G6: 208 | I6: 145 | K6: 353
F7: Gebühren | H7: 240 | K7: 240
F8: Geschenke | G8: 282 | I8: 280 | K8: 562
F9: Haushalt | G9: 710 | I9: 2408 | J9: 5489 | K9: 8607
F10: Kleidung | G10: 191 | I10: 164 | K10: 355
F11: Urlaub | G11: 390 | I11: 220 | J11: 5141 | K11: 5751
F12: Gesamtergebnis | G12: 1942 | H12: 240 | I12: 3990 | J12: 10630 | K12: 16802

Sheet Pivot Demo 3
F3: Summe von Preise | G3: Bez
F4: Typen | G4: 2018 | H4: 2019 | I4: Gesamtergebnis
F5: Auto | G5: 137 | H5: 797 | I5: 934
F6: Freizeit | G6: 26 | H6: 327 | I6: 353
F7: Gebühren | G7: 120 | H7: 120 | I7: 240
F8: Geschenke | G8: 455 | H8: 107 | I8: 562
F9: Haushalt | G9: 5389 | H9: 3218 | I9: 8607
F10: Kleidung | G10: 75 | H10: 280 | I10: 355
F11: Urlaub | G11: 680 | H11: 5071 | I11: 5751
F12: Gesamtergebnis | G12: 6882 | H12: 9920 | I12: 16802

Sheet Pivot mit Power 1

Sheet Pivot mit Power 2
B6: Hersteller | C6: Menge | D6: Umsatz
B7: Adventure Works | C7: 693238 | D7: 312414584.3
B8: Contoso, Ltd | C8: 1457422 | D8: 453391404.5
B9: Litware, Inc. | C9: 617243 | D9: 333343711.8
B10: Northwind Traders | C10: 379758 | D10: 20487954.9
B11: Southridge Video | C11: 566391 | D11: 96988764.6
B12: Wide World Importers | C12: 431105 | D12: 67327359.45
B13: Gesamtergebnis | C13: 4145157 | D13: 1283953780

Sheet Tabelle2
B3: Zeilenbeschriftungen | C3: Summe von SalesRevenue
B4: Adventure Works | C4: 312414584.3
B5: Contoso, Ltd | C5: 453391404.5
B6: Litware, Inc. | C6: 333343711.8
B7: Northwind Traders | C7: 20487954.9
B8: Southridge Video | C8: 96988764.6
B9: Wide World Importers | C9: 67327359.45
B10: Gesamtergebnis | C10: 1283953780

Sheet Pivot mit Power DEMO

Sheet Ideen Ausgaben
A2: Date | B2: Types | C2: Beschreibung | D2: Bezahlung | E2: Price
A3: 2018-01-17 | B3: Haushalt | C3: Geschirr | D3: Bar | E3: 410
A4: 2018-02-04 | B4: Auto | C4: Benzin | D4: EC | E4: 20
A5: 2018-02-23 | B5: Gebühren | C5: GEZ | D5: Dauerauftrag | E5: 40
A6: 2018-02-28 | B6: Geschenke | C6: Petra, Geb. | D6: Bar | E6: 120
A7: 2018-04-11 | B7: Auto | C7: Waschen | D7: Bar | E7: 12
A8: 2018-04-13 | B8: Kleidung | C8: Schuhe | D8: EC | E8: 42
A9: 2018-05-23 | B9: Kleidung | C9: T-Shirts | D9: EC | E9: 33
A10: 2018-06-10 | B10: Geschenke | C10: Marion, Geb | D10: Bar | E10: 55
A11: 2018-06-17 | B11: Freizeit | C11: Pizza | D11: Bar | E11: 26
A12: 2018-06-19 | B12: Gebühren | C12: GEZ | D12: Dauerauftrag | E12: 40
A13: 2018-07-01 | B13: Urlaub | C13: Mallorca | D13: Kredit | E13: 680
A14: 2018-07-14 | B14: Auto | C14: Benzin | D14: EC | E14: 20
A15: 2018-07-17 | B15: Haushalt | C15: Putzmittel | D15: Bar | E15: 15
A16: 2018-08-04 | B16: Haushalt | C16: Staubsauger | D16: EC | E16: 99
A17: 2018-10-09 | B17: Auto | C17: Benzin | D17: EC | E17: 48
A18: 2018-10-16 | B18: Haushalt | C18: Couch | D18: Kredit | E18: 4200
A19: 2018-10-16 | B19: Gebühren | C19: GEZ | D19: Dauerauftrag | E19: 40
A20: 2018-10-17 | B20: Haushalt | C20: Lampen | D20: Kredit | E20: 290
A21: 2018-11-26 | B21: Auto | C21: Benzin | D21: EC | E21: 37
A22: 2018-12-07 | B22: Haushalt | C22: Handtücher | D22: Bar | E22: 120
A23: 2018-12-08 | B23: Haushalt | C23: Bettzeug | D23: EC | E23: 210
A24: 2018-12-09 | B24: Geschenke | C24: Hochzeit Hans | D24: EC | E24: 280
A25: 2018-12-23 | B25: Haushalt | C25: Duschgel | D25: Bar | E25: 45
A26: 2019-01-02 | B26: Haushalt | C26: Parfum | D26: EC | E26: 89
A27: 2019-01-10 | B27: Auto | C27: TÜV | D27: Bar | E27: 64
A28: 2019-01-15 | B28: Urlaub | C28: Ibiza | D28: EC | E28: 220
A29: 2019-01-22 | B29: Auto | C29: Benzin | D29: Bar | E29: 55
A30: 2019-01-24 | B30: Urlaub | C30: El Gouna | D30: Kredit | E30: 740
A31: 2019-01-25 | B31: Gebühren | C31: GEZ | D31: Dauerauftrag | E31: 40
A32: 2019-03-08 | B32: Freizeit | C32: Kino | D32: Bar | E32: 22
A33: 2019-03-12 | B33: Geschenke | C33: Dieter, Rente | D33: Bar | E33: 60
A34: 2019-03-18 | B34: Freizeit | C34: Inder | D34: Bar | E34: 55
A35: 2019-03-29 | B35: Auto | C35: Reparatur | D35: EC | E35: 512
A36: 2019-04-07 | B36: Urlaub | C36: Holland | D36: Bar | E36: 140
A37: 2019-04-21 | B37: Freizeit | C37: Fisch essen | D37: Bar | E37: 51
A38: 2019-04-21 | B38: Urlaub | C38: Teneriffa | D38: Kredit | E38: 941
A39: 2019-04-21 | B39: Urlaub | C39: Teneriffa | D39: Bar | E39: 250
A40: 2019-05-03 | B40: Freizeit | C40: Japaner | D40: EC | E40: 98
A41: 2019-05-12 | B41: Freizeit | C41: Mexikaner | D41: EC | E41: 47
A42: 2019-05-13 | B42: Haushalt | C42: Parkett | D42: EC | E42: 850
A43: 2019-05-17 | B43: Auto | C43: Ölwechsel | D43: EC | E43: 74
A44: 2019-06-14 | B44: Haushalt | C44: Fernseher | D44: Kredit | E44: 999
A45: 2019-06-26 | B45: Gebühren | C45: GEZ | D45: Dauerauftrag | E45: 40
A46: 2019-07-23 | B46: Auto | C46: Waschen | D46: Bar | E46: 20
A47: 2019-07-30 | B47: Haushalt | C47: Waschmaschine | D47: EC | E47: 340
A48: 2019-07-31 | B48: Auto | C48: Benzin | D48: EC | E48: 62
A49: 2019-08-22 | B49: Freizeit | C49: Thai-Imbiss | D49: Bar | E49: 19
A50: 2019-08-27 | B50: Auto | C50: Waschen | D50: Bar | E50: 10
A51: 2019-08-29 | B51: Haushalt | C51: Schrank | D51: EC | E51: 600
A52: 2019-09-06 | B52: Haushalt | C52: Stühle | D52: EC | E52: 220
A53: 2019-09-09 | B53: Kleidung | C53: Hut | D53: Bar | E53: 45
A54: 2019-09-11 | B54: Geschenke | C54: Gabi, Geb | D54: Bar | E54: 47
A55: 2019-09-14 | B55: Kleidung | C55: Shorts | D55: Bar | E55: 22
A56: 2019-09-19 | B56: Freizeit | C56: Pizza | D56: Bar | E56: 35
A57: 2019-10-10 | B57: Kleidung | C57: Hawaii-Hemdem | D57: EC | E57: 89
A58: 2019-10-15 | B58: Gebühren | C58: GEZ | D58: Dauerauftrag | E58: 40
A59: 2019-10-17 | B59: Kleidung | C59: Hemd | D59: Bar | E59: 25
A60: 2019-10-30 | B60: Kleidung | C60: Hose | D60: Bar | E60: 99
A61: 2019-11-02 | B61: Haushalt | C61: Geschirr | D61: Bar | E61: 120
A62: 2019-11-21 | B62: Urlaub | C62: Hawaii | D62: Kredit | E62: 2780

Sheet Ideen zu teuer
A2: Zeilenbeschriftungen | B2: Summe von Price
A3: 2018-01-17 | B3: 410 | D3: An diesem Datum waren meine Ausgaben besonders hoch
A4: 2018-02-04 | B4: 20
A5: 2018-02-23 | B5: 40
A6: 2018-02-28 | B6: 120
A7: 2018-04-11 | B7: 12
A8: 2018-04-13 | B8: 42
A9: 2018-05-23 | B9: 33
A10: 2018-06-10 | B10: 55
A11: 2018-06-17 | B11: 26
A12: 2018-06-19 | B12: 40
A13: 2018-07-01 | B13: 680
A14: 2018-07-14 | B14: 20
A15: 2018-07-17 | B15: 15
A16: 2018-08-04 | B16: 99
A17: 2018-10-09 | B17: 48
A18: 2018-10-16 | B18: 4240
A19: 2018-10-17 | B19: 290
A20: 2018-11-26 | B20: 37
A21: 2018-12-07 | B21: 120
A22: 2018-12-08 | B22: 210
A23: 2018-12-09 | B23: 280
A24: 2018-12-23 | B24: 45
A25: 2019-01-02 | B25: 89
A26: 2019-01-10 | B26: 64
A27: 2019-01-15 | B27: 220
A28: 2019-01-22 | B28: 55
A29: 2019-01-24 | B29: 740
A30: 2019-01-25 | B30: 40
A31: 2019-03-08 | B31: 22
A32: 2019-03-12 | B32: 60
A33: 2019-03-18 | B33: 55
A34: 2019-03-29 | B34: 512
A35: 2019-04-07 | B35: 140
A36: 2019-04-21 | B36: 1242
A37: 2019-05-03 | B37: 98
A38: 2019-05-12 | B38: 47
A39: 2019-05-13 | B39: 850
A40: 2019-05-17 | B40: 74
A41: 2019-06-14 | B41: 999
A42: 2019-06-26 | B42: 40
A43: 2019-07-23 | B43: 20
A44: 2019-07-30 | B44: 340
A45: 2019-07-31 | B45: 62
A46: 2019-08-22 | B46: 19
A47: 2019-08-27 | B47: 10
A48: 2019-08-29 | B48: 600
A49: 2019-09-06 | B49: 220
A50: 2019-09-09 | B50: 45
A51: 2019-09-11 | B51: 47
A52: 2019-09-14 | B52: 22
A53: 2019-09-19 | B53: 35
A54: 2019-10-10 | B54: 89
A55: 2019-10-15 | B55: 40
A56: 2019-10-17 | B56: 25
A57: 2019-10-30 | B57: 99
A58: 2019-11-02 | B58: 120
A59: 2019-11-21 | B59: 2780
A60: Gesamtergebnis | B60: 16802

Sheet Ideen weniger Bar
A2: Types | B2: Geschenke
A3: Bezahlung | B3: Bar | D3: Geschenke, die ich bar bezahle, werden immer billiger
A5: Zeilenbeschriftungen | B5: Summe von Price
A6: 2018-02-28 | B6: 120
A7: 2018-06-10 | B7: 55
A8: 2019-03-12 | B8: 60
A9: 2019-09-11 | B9: 47
A10: Gesamtergebnis | B10: 282

Sheet Ideen zu viel auf Pump
A2: Zeilenbeschriftungen | B2: Summe von Price | D2: Ich kaufe zu viel auf Kredit
A3: Kredit | B3: 10630
A4: EC | B4: 3990
A5: Bar | B5: 1942
A6: Dauerauftrag | B6: 240
A7: Gesamtergebnis | B7: 16802
